{"text_format":"1","workbook":"xlsx","n_sheets":2,"sheets":["данные","оБРАЗЕЦ"],"not_rendered":{"charts":0,"images":0,"macros":1,"external_links":0,"defined_names":1,"comments":0,"pivot_tables":0},"unopened":[],"bounds":{"document_bytes":16777216,"sheet_cells":100000,"rows_first":2000,"rows_last":500,"rows_between":2000,"halvings":0,"cell_chars":16384,"cell_head_chars":4096},"cells_cut":0,"cells_raw":0,"read":"whole","date_system":"1900"}

{"sheet":"данные","index":0,"n_rows":357,"n_cols":7,"rows_kept":357,"cut":false,"hidden":false,"merged":[]}
[]
[null,null,"МУЖ","возраст","заболевание","дней ВН","СЛУЧАЕВ"]
[null,null,null,22,"Н",12,1]
[null,null,null,23,"А",4,1]
[null,null,null,23,"Э",19,1]
[null,null,null,23,"О",7,1]
[null,null,null,24,"С",10,1]
[null,null,null,24,"М",2,1]
[null,null,null,24,"А",3,1]
[null,null,null,25,"Н",8,1]
[null,null,null,26,"Н",6,1]
[null,null,null,27,"Э",17,1]
[null,null,null,27,"О",3,1]
[null,null,null,28,"О",3,1]
[null,null,null,28,"Н",13,1]
[null,null,null,28,"М",4,1]
[null,null,null,28,"Н",12,1]
[null,null,null,28,"М",2,1]
[null,null,null,28,"Н",13,1]
[null,null,null,29,"М",6,1]
[null,null,null,29,"М",3,1]
[null,null,null,29,"А",3,1]
[null,null,null,29,"Э",17,1]
[null,null,null,30,"А",5,1]
[null,null,null,30,"Н",8,1]
[null,null,null,30,"Н",15,1]
[null,null,null,30,"О",10,1]
[null,null,null,30,"Э",2,1]
[null,null,null,30,"Н",34,1]
[null,null,null,30,"Н",14,1]
[null,null,null,30,"Э",15,1]
[null,null,null,31,"Э",17,1]
[null,null,null,31,"Н",4,1]
[null,null,null,31,"Н",15,1]
[null,null,null,31,"Э",7,1]
[null,null,null,31,"Э",6,1]
[null,null,null,32,"Э",14,1]
[null,null,null,32,"А",3,1]
[null,null,"М",32,"АЗОО",3,1]
[null,null,null,33,"Н",14,1]
[null,null,null,33,"Н",22,1]
[null,null,null,33,"Н",14,1]
[null,null,null,33,"О",3,1]
[null,null,null,33,"Э",20,1]
[null,null,null,33,"Н",6,1]
[null,null,null,34,"А",3,1]
[null,null,null,34,"А",2,1]
[null,null,null,34,"Н",12,1]
[null,null,null,34,"Н",15,1]
[null,null,null,34,"А",3,1]
[null,null,null,34,"М",10,1]
[null,null,null,34,"М",4,1]
[null,null,null,34,"Э",22,1]
[null,null,null,34,"Э",18,1]
[null,null,null,35,"Н",8,1]
[null,null,null,35,"Н",8,1]
[null,null,null,35,"А",3,1]
[null,null,null,35,"М",2,1]
[null,null,null,35,"Н",15,1]
[null,null,null,35,"Н",11,1]
[null,null,null,36,"О",7,1]
[null,null,null,37,"Э",14,1]
[null,null,null,37,"А",3,1]
[null,null,null,37,"М",2,1]
[null,null,null,37,"А",3,1]
[null,null,null,38,"Н",9,1]
[null,null,null,38,"О",12,1]
[null,null,null,39,"Э",21,1]
[null,null,null,39,"М",13,1]
[null,null,null,39,"М",2,1]
[null,null,null,40,"А",4,1]
[null,null,null,40,"Э",27,1]
[null,null,null,41,"Э",1,1]
[null,null,null,42,"М",3,1]
[null,null,null,42,"М",2,1]
[null,null,null,43,"Э",12,1]
[null,null,null,44,"М",3,1]
[null,null,null,44,"А",6,1]
[null,null,null,44,"Н",9,1]
[null,null,null,54,"М",2,1]
[null,null,null,58,"О",9,1]
[null,null,29,null,"В",3,1]
[null,null,42,null,"АЗ",3,1]
[null,null,null,null,null,null,1]
[null,null,null,null,null,null,1]
[null,null,null,null,null,null,1]
[null,null,null,null,null,null,1]
[null,null,null,null,null,null,1]
[null,null,null,null,null,null,1]
[null,null,null,null,null,null,1]
[null,null,null,null,null,null,1]
[null,null,null,null,null,null,1]
[null,null,null,null,null,null,1]
[null,null,null,null,null,null,1]
[null,null,null,null,null,null,1]
[null,null,null,null,null,null,1]
[null,null,null,null,null,null,1]
[null,null,null,null,null,null,1]
[null,null,null,null,null,null,1]
[null,null,null,null,null,null,1]
[null,null,null,null,null,null,1]
[null,null,null,null,null,null,1]
[null,null,null,null,null,null,1]
[null,null,null,null,null,null,1]
[null,null,null,null,null,null,1]
[null,null,null,null,null,null,1]
[null,null,null,null,null,null,1]
[null,null,null,null,null,null,1]
[null,null,null,null,null,null,1]
[null,null,null,null,null,null,1]
[null,null,null,null,null,null,1]
[null,null,null,null,null,null,1]
[null,null,null,null,null,null,1]
[null,null,null,null,null,null,1]
[null,null,null,null,null,null,1]
[null,null,null,null,null,null,1]
[null,null,null,null,null,null,1]
[null,null,null,null,null,null,1]
[null,null,null,null,null,null,1]
[null,null,null,null,null,null,1]
[null,null,null,null,null,null,1]
[null,null,null,null,null,null,1]
[null,null,null,null,null,null,1]
[null,null,null,null,null,null,1]
[null,null,null,null,null,null,1]
[null,null,null,null,null,null,1]
[null,null,null,null,null,null,1]
[null,null,null,null,null,null,1]
[null,null,null,null,null,null,1]
[null,null,null,null,null,null,1]
[null,null,null,null,null,null,1]
[null,null,null,null,null,null,1]
[null,null,null,null,null,null,1]
[null,null,null,null,null,null,1]
[null,null,null,null,null,null,1]
[null,null,null,null,null,null,1]
[null,null,null,null,null,null,1]
[null,null,null,null,null,null,1]
[null,null,null,null,null,null,1]
[null,null,null,null,null,null,1]
[null,null,null,null,null,null,1]
[null,null,null,null,null,null,1]
[null,null,null,null,null,null,1]
[null,null,null,null,null,null,1]
[null,null,null,null,null,null,1]
[null,null,null,null,null,null,1]
[null,null,null,null,null,null,1]
[null,null,null,null,null,null,1]
[null,null,null,null,null,null,1]
[null,null,null,null,null,null,1]
[null,null,null,null,null,null,1]
[null,null,null,null,null,null,1]
[null,null,null,null,null,null,1]
[null,null,null,null,null,null,1]
[null,null,null,null,null,null,1]
[null,null,null,null,null,null,1]
[null,null,null,null,null,null,1]
[null,null,null,null,null,null,1]
[null,null,null,null,null,null,1]
[null,null,null,null,null,null,1]
[null,null,null,null,null,null,1]
[null,null,null,null,null,null,1]
[null,null,null,null,null,null,1]
[null,null,null,null,null,null,1]
[null,null,null,null,null,null,1]
[null,null,null,null,null,null,1]
[null,null,null,null,null,null,1]
[null,null,null,null,null,null,1]
[null,null,null,null,null,null,1]
[null,null,null,null,null,null,1]
[null,null,null,null,null,null,1]
[null,null,null,null,null,null,1]
[null,null,null,null,null,null,1]
[null,null,null,null,null,null,1]
[null,null,null,null,null,null,1]
[null,null,null,null,null,null,1]
[null,null,null,null,null,null,1]
[null,null,null,null,null,null,1]
[null,null,null,null,null,null,1]
[null,null,null,null,null,null,1]
[null,null,null,null,null,null,1]
[null,null,null,null,null,null,1]
[null,null,null,null,null,null,1]
[null,null,null,null,null,null,1]
[null,null,null,null,null,null,1]
[null,null,null,null,null,null,1]
[null,null,null,null,null,null,1]
[null,null,null,null,null,null,1]
[null,null,null,null,null,null,1]
[null,null,null,null,null,null,1]
[null,null,null,null,null,null,1]
[null,null,null,null,null,null,1]
[null,null,null,null,null,null,1]
[null,null,null,null,null,null,1]
[null,null,null,null,null,null,1]
[null,null,null,null,null,null,1]
[null,null,null,null,null,null,1]
[null,null,null,null,null,null,1]
[null,null,null,null,null,null,1]
[null,null,null,null,null,null,1]
[null,null,null,null,null,null,1]
[null,null,null,null,null,null,1]
[null,null,null,null,null,null,1]
[null,null,null,null,null,null,1]
[null,null,null,null,null,null,1]
[null,null,null,null,null,null,1]
[null,null,null,null,null,null,1]
[null,null,null,null,null,null,1]
[null,null,null,null,null,null,1]
[null,null,null,null,null,null,1]
[null,null,null,null,null,null,1]
[null,null,null,null,null,null,1]
[null,null,null,null,null,null,1]
[null,null,null,null,null,null,1]
[null,null,null,null,null,null,1]
[null,null,null,null,null,null,1]
[null,null,null,null,null,null,1]
[null,null,null,null,null,null,1]
[null,null,null,null,null,null,1]
[null,null,null,null,null,null,1]
[null,null,null,null,null,null,1]
[null,null,null,null,null,null,1]
[null,null,null,null,null,null,1]
[null,null,null,null,null,null,1]
[null,null,null,null,null,null,1]
[null,null,null,null,null,null,1]
[null,null,null,null,null,null,1]
[null,null,null,null,null,null,1]
[null,null,null,null,null,null,1]
[null,null,null,null,null,null,1]
[null,null,null,null,null,null,1]
[null,null,null,null,null,null,1]
[null,null,null,null,null,null,1]
[null,null,null,null,null,null,1]
[null,null,null,null,null,null,1]
[null,null,null,null,null,null,1]
[null,null,null,null,null,null,1]
[null,null,null,null,null,null,1]
[null,null,null,null,null,null,1]
[null,null,null,null,null,null,1]
[null,null,null,null,null,null,1]
[null,null,null,null,null,null,1]
[null,null,null,null,null,null,1]
[null,null,null,null,null,null,1]
[null,null,null,null,null,null,1]
[null,null,null,null,null,null,1]
[null,null,null,null,null,null,1]
[null,null,null,null,null,null,1]
[null,null,null,null,null,null,1]
[null,null,null,null,null,null,1]
[null,null,null,null,null,null,1]
[null,null,null,null,null,null,1]
[null,null,null,null,null,null,1]
[null,null,null,null,null,null,1]
[null,null,null,null,null,null,1]
[null,null,null,null,null,null,1]
[null,null,null,null,null,null,1]
[null,null,null,null,null,null,1]
[null,null,null,null,null,null,1]
[null,null,null,null,null,null,1]
[null,null,null,null,null,null,1]
[null,null,null,null,null,null,1]
[null,null,null,null,null,null,1]
[null,null,null,null,null,null,1]
[null,null,null,null,null,null,1]
[null,null,null,null,null,null,1]
[null,null,null,null,null,null,1]
[null,null,null,null,null,null,1]
[null,null,null,null,null,null,1]
[null,null,null,null,null,null,1]
[null,null,null,null,null,null,1]
[null,null,null,null,null,null,1]
[null,null,null,null,null,null,1]
[null,null,null,null,null,null,1]
[null,null,null,null,null,null,1]
[null,null,null,null,null,null,1]
[null,null,null,null,null,null,1]
[null,null,null,null,null,null,1]
[null,null,null,null,null,null,1]
[null,null,null,null,null,null,1]
[null,null,null,null,null,null,1]
[null,null,null,null,null,null,1]
[null,null,null,null,null,null,1]
[null,null,null,null,null,null,1]
[null,null,null,null,null,null,1]
[null,null,null,null,null,null,1]
[null,null,null,null,null,null,1]
[null,null,null,null,null,null,1]
[null,null,null,null,null,null,1]
[null,null,null,null,null,null,1]
[null,null,null,null,null,null,1]
[null,null,null,null,null,null,1]
[null,null,null,null,null,null,1]
[null,null,null,null,null,null,1]
[null,null,null,null,null,null,1]
[null,null,null,null,null,null,1]
[null,null,null,null,null,null,1]
[null,null,null,null,null,null,1]
[null,null,null,null,null,null,1]
[null,null,null,null,null,null,1]
[null,null,null,null,null,null,1]
[null,null,null,null,null,null,1]
[null,null,null,null,null,null,1]
[null,null,null,null,null,null,1]
[null,null,null,null,null,null,1]
[null,null,null,null,null,null,1]
[null,null,null,null,null,null,1]
[null,null,null,null,null,null,1]
[null,null,null,null,null,null,1]
[null,null,null,null,null,null,1]
[null,null,null,null,null,null,1]
[null,null,null,null,null,null,1]
[null,null,null,null,null,null,1]
[null,null,null,null,null,null,1]
[null,null,null,null,null,null,1]
[null,null,null,null,null,null,1]
[null,null,null,null,null,null,1]
[null,null,null,null,null,null,1]
[null,null,null,null,null,null,1]
[null,null,null,null,null,null,1]
[null,null,null,null,null,null,1]
[null,null,null,null,null,null,1]
[null,null,null,null,null,null,1]
[null,null,null,null,null,null,1]
[null,null,null,null,null,null,1]
[null,null,null,null,null,null,1]
[null,null,null,null,null,null,1]
[null,null,null,null,null,null,1]
[null,null,null,null,null,null,1]
[null,null,null,null,null,null,1]
[null,null,null,null,null,null,1]
[null,null,null,null,null,null,1]
[null,null,null,null,null,null,1]
[null,null,null,null,null,null,1]
[null,null,null,null,null,null,1]
[null,null,null,null,null,null,1]
[null,null,null,null,null,null,1]
[null,null,null,null,null,null,1]
[null,null,null,null,null,null,1]
[null,null,null,null,null,null,1]
[null,null,null,null,null,null,1]
[null,null,null,null,null,null,1]
[null,null,null,null,null,null,1]
[null,null,null,null,null,null,1]
[null,null,null,null,null,null,1]
[null,null,null,null,null,null,1]
[null,null,null,null,null,null,1]
[null,null,null,null,null,null,1]
[null,null,null,null,null,null,1]
[null,null,null,null,null,null,1]
[null,null,null,null,null,null,1]
[null,null,null,null,null,null,1]
[null,null,null,null,null,null,1]
[null,null,null,null,null,null,1]
[null,null,null,null,null,null,1]
[null,null,null,null,null,null,1]
[null,null,null,null,null,{"$f":"SUM(F3:F356)","v":724},{"$f":"SUM(G3:G356)","v":354}]

{"sheet":"оБРАЗЕЦ","index":1,"n_rows":12,"n_cols":21,"rows_kept":12,"cut":false,"hidden":false,"merged":[[2,19,2,20],[2,9,2,10],[14,1,14,2],[2,1,2,2],[2,3,2,4],[2,5,2,6],[2,7,2,8],[0,11,1,12],[0,13,1,14],[0,15,1,16],[0,17,1,18],[2,11,2,12],[2,13,2,14],[2,15,2,16],[2,17,2,18],[0,7,1,8],[0,1,1,2],[0,3,1,4],[0,5,1,6],[0,9,1,10]]}
[null,"возраст",null,"возраст",null,"возраст",null,"возраст",null,"возраст",null,"возраст",null,"возраст",null,"возраст",null,"возраст",null,1954]
[null,null,null,null,null,null,null,null,null,null,null,null,null,null,null,null,null,null,null,"ранее"]
[null,"15-19",null,"20-24",null,"25-29",null,"30-34",null,"35-39",null,"40-44",null,"45-49",null,"50-54",null,"55-59",null,"60-99"]
["Ниже - Заболевание с листа \"данные\"","дни","случ.","дни","случ.","дни","случ.","дни","случ.","дни","случ.","дни","случ.","дни","случ.","дни","случ.","дни","случ.","дни","случ."]
["О",null,null,{"$f":"SUMIFS(данные!$F:$F,данные!$D:$D,\">=\"&--LEFT(оБРАЗЕЦ!D$3,2),данные!$D:$D,\"<=\"&--RIGHT(оБРАЗЕЦ!D$3,2),данные!$E:$E,оБРАЗЕЦ!$A5)","v":7},{"$f":"SUMIFS(данные!$G:$G,данные!$D:$D,\">=\"&--LEFT(оБРАЗЕЦ!D$3,2),данные!$D:$D,\"<=\"&--RIGHT(оБРАЗЕЦ!D$3,2),данные!$E:$E,оБРАЗЕЦ!$A5)","v":1},{"$f":"SUMIFS(данные!$F:$F,данные!$D:$D,\">=\"&--LEFT(оБРАЗЕЦ!F$3,2),данные!$D:$D,\"<=\"&--RIGHT(оБРАЗЕЦ!F$3,2),данные!$E:$E,оБРАЗЕЦ!$A5)","v":6},{"$f":"SUMIFS(данные!$G:$G,данные!$D:$D,\">=\"&--LEFT(оБРАЗЕЦ!F$3,2),данные!$D:$D,\"<=\"&--RIGHT(оБРАЗЕЦ!F$3,2),данные!$E:$E,оБРАЗЕЦ!$A5)","v":2},{"$f":"SUMIFS(данные!$F:$F,данные!$D:$D,\">=\"&--LEFT(оБРАЗЕЦ!H$3,2),данные!$D:$D,\"<=\"&--RIGHT(оБРАЗЕЦ!H$3,2),данные!$E:$E,оБРАЗЕЦ!$A5)","v":13},{"$f":"SUMIFS(данные!$G:$G,данные!$D:$D,\">=\"&--LEFT(оБРАЗЕЦ!H$3,2),данные!$D:$D,\"<=\"&--RIGHT(оБРАЗЕЦ!H$3,2),данные!$E:$E,оБРАЗЕЦ!$A5)","v":2},{"$f":"SUMIFS(данные!$F:$F,данные!$D:$D,\">=\"&--LEFT(оБРАЗЕЦ!J$3,2),данные!$D:$D,\"<=\"&--RIGHT(оБРАЗЕЦ!J$3,2),данные!$E:$E,оБРАЗЕЦ!$A5)","v":19},{"$f":"SUMIFS(данные!$G:$G,данные!$D:$D,\">=\"&--LEFT(оБРАЗЕЦ!J$3,2),данные!$D:$D,\"<=\"&--RIGHT(оБРАЗЕЦ!J$3,2),данные!$E:$E,оБРАЗЕЦ!$A5)","v":2},{"$f":"SUMIFS(данные!$F:$F,данные!$D:$D,\">=\"&--LEFT(оБРАЗЕЦ!L$3,2),данные!$D:$D,\"<=\"&--RIGHT(оБРАЗЕЦ!L$3,2),данные!$E:$E,оБРАЗЕЦ!$A5)","v":0},{"$f":"SUMIFS(данные!$G:$G,данные!$D:$D,\">=\"&--LEFT(оБРАЗЕЦ!L$3,2),данные!$D:$D,\"<=\"&--RIGHT(оБРАЗЕЦ!L$3,2),данные!$E:$E,оБРАЗЕЦ!$A5)","v":0},{"$f":"SUMIFS(данные!$F:$F,данные!$D:$D,\">=\"&--LEFT(оБРАЗЕЦ!N$3,2),данные!$D:$D,\"<=\"&--RIGHT(оБРАЗЕЦ!N$3,2),данные!$E:$E,оБРАЗЕЦ!$A5)","v":0},{"$f":"SUMIFS(данные!$G:$G,данные!$D:$D,\">=\"&--LEFT(оБРАЗЕЦ!N$3,2),данные!$D:$D,\"<=\"&--RIGHT(оБРАЗЕЦ!N$3,2),данные!$E:$E,оБРАЗЕЦ!$A5)","v":0},{"$f":"SUMIFS(данные!$F:$F,данные!$D:$D,\">=\"&--LEFT(оБРАЗЕЦ!P$3,2),данные!$D:$D,\"<=\"&--RIGHT(оБРАЗЕЦ!P$3,2),данные!$E:$E,оБРАЗЕЦ!$A5)","v":0},{"$f":"SUMIFS(данные!$G:$G,данные!$D:$D,\">=\"&--LEFT(оБРАЗЕЦ!P$3,2),данные!$D:$D,\"<=\"&--RIGHT(оБРАЗЕЦ!P$3,2),данные!$E:$E,оБРАЗЕЦ!$A5)","v":0},{"$f":"SUMIFS(данные!$F:$F,данные!$D:$D,\">=\"&--LEFT(оБРАЗЕЦ!R$3,2),данные!$D:$D,\"<=\"&--RIGHT(оБРАЗЕЦ!R$3,2),данные!$E:$E,оБРАЗЕЦ!$A5)","v":9},{"$f":"SUMIFS(данные!$G:$G,данные!$D:$D,\">=\"&--LEFT(оБРАЗЕЦ!R$3,2),данные!$D:$D,\"<=\"&--RIGHT(оБРАЗЕЦ!R$3,2),данные!$E:$E,оБРАЗЕЦ!$A5)","v":1},{"$f":"SUMIFS(данные!$F:$F,данные!$D:$D,\">=\"&--LEFT(оБРАЗЕЦ!T$3,2),данные!$D:$D,\"<=\"&--RIGHT(оБРАЗЕЦ!T$3,2),данные!$E:$E,оБРАЗЕЦ!$A5)","v":0},{"$f":"SUMIFS(данные!$G:$G,данные!$D:$D,\">=\"&--LEFT(оБРАЗЕЦ!T$3,2),данные!$D:$D,\"<=\"&--RIGHT(оБРАЗЕЦ!T$3,2),данные!$E:$E,оБРАЗЕЦ!$A5)","v":0}]
["З",null,null,{"$f":"SUMIFS(данные!$F:$F,данные!$D:$D,\">=\"&--LEFT(оБРАЗЕЦ!D$3,2),данные!$D:$D,\"<=\"&--RIGHT(оБРАЗЕЦ!D$3,2),данные!$E:$E,оБРАЗЕЦ!$A6)","v":0},{"$f":"SUMIFS(данные!$G:$G,данные!$D:$D,\">=\"&--LEFT(оБРАЗЕЦ!D$3,2),данные!$D:$D,\"<=\"&--RIGHT(оБРАЗЕЦ!D$3,2),данные!$E:$E,оБРАЗЕЦ!$A6)","v":0},{"$f":"SUMIFS(данные!$F:$F,данные!$D:$D,\">=\"&--LEFT(оБРАЗЕЦ!F$3,2),данные!$D:$D,\"<=\"&--RIGHT(оБРАЗЕЦ!F$3,2),данные!$E:$E,оБРАЗЕЦ!$A6)","v":0},{"$f":"SUMIFS(данные!$G:$G,данные!$D:$D,\">=\"&--LEFT(оБРАЗЕЦ!F$3,2),данные!$D:$D,\"<=\"&--RIGHT(оБРАЗЕЦ!F$3,2),данные!$E:$E,оБРАЗЕЦ!$A6)","v":0},{"$f":"SUMIFS(данные!$F:$F,данные!$D:$D,\">=\"&--LEFT(оБРАЗЕЦ!H$3,2),данные!$D:$D,\"<=\"&--RIGHT(оБРАЗЕЦ!H$3,2),данные!$E:$E,оБРАЗЕЦ!$A6)","v":0},{"$f":"SUMIFS(данные!$G:$G,данные!$D:$D,\">=\"&--LEFT(оБРАЗЕЦ!H$3,2),данные!$D:$D,\"<=\"&--RIGHT(оБРАЗЕЦ!H$3,2),данные!$E:$E,оБРАЗЕЦ!$A6)","v":0},{"$f":"SUMIFS(данные!$F:$F,данные!$D:$D,\">=\"&--LEFT(оБРАЗЕЦ!J$3,2),данные!$D:$D,\"<=\"&--RIGHT(оБРАЗЕЦ!J$3,2),данные!$E:$E,оБРАЗЕЦ!$A6)","v":0},{"$f":"SUMIFS(данные!$G:$G,данные!$D:$D,\">=\"&--LEFT(оБРАЗЕЦ!J$3,2),данные!$D:$D,\"<=\"&--RIGHT(оБРАЗЕЦ!J$3,2),данные!$E:$E,оБРАЗЕЦ!$A6)","v":0},{"$f":"SUMIFS(данные!$F:$F,данные!$D:$D,\">=\"&--LEFT(оБРАЗЕЦ!L$3,2),данные!$D:$D,\"<=\"&--RIGHT(оБРАЗЕЦ!L$3,2),данные!$E:$E,оБРАЗЕЦ!$A6)","v":0},{"$f":"SUMIFS(данные!$G:$G,данные!$D:$D,\">=\"&--LEFT(оБРАЗЕЦ!L$3,2),данные!$D:$D,\"<=\"&--RIGHT(оБРАЗЕЦ!L$3,2),данные!$E:$E,оБРАЗЕЦ!$A6)","v":0},{"$f":"SUMIFS(данные!$F:$F,данные!$D:$D,\">=\"&--LEFT(оБРАЗЕЦ!N$3,2),данные!$D:$D,\"<=\"&--RIGHT(оБРАЗЕЦ!N$3,2),данные!$E:$E,оБРАЗЕЦ!$A6)","v":0},{"$f":"SUMIFS(данные!$G:$G,данные!$D:$D,\">=\"&--LEFT(оБРАЗЕЦ!N$3,2),данные!$D:$D,\"<=\"&--RIGHT(оБРАЗЕЦ!N$3,2),данные!$E:$E,оБРАЗЕЦ!$A6)","v":0},{"$f":"SUMIFS(данные!$F:$F,данные!$D:$D,\">=\"&--LEFT(оБРАЗЕЦ!P$3,2),данные!$D:$D,\"<=\"&--RIGHT(оБРАЗЕЦ!P$3,2),данные!$E:$E,оБРАЗЕЦ!$A6)","v":0},{"$f":"SUMIFS(данные!$G:$G,данные!$D:$D,\">=\"&--LEFT(оБРАЗЕЦ!P$3,2),данные!$D:$D,\"<=\"&--RIGHT(оБРАЗЕЦ!P$3,2),данные!$E:$E,оБРАЗЕЦ!$A6)","v":0},{"$f":"SUMIFS(данные!$F:$F,данные!$D:$D,\">=\"&--LEFT(оБРАЗЕЦ!R$3,2),данные!$D:$D,\"<=\"&--RIGHT(оБРАЗЕЦ!R$3,2),данные!$E:$E,оБРАЗЕЦ!$A6)","v":0},{"$f":"SUMIFS(данные!$G:$G,данные!$D:$D,\">=\"&--LEFT(оБРАЗЕЦ!R$3,2),данные!$D:$D,\"<=\"&--RIGHT(оБРАЗЕЦ!R$3,2),данные!$E:$E,оБРАЗЕЦ!$A6)","v":0},{"$f":"SUMIFS(данные!$F:$F,данные!$D:$D,\">=\"&--LEFT(оБРАЗЕЦ!T$3,2),данные!$D:$D,\"<=\"&--RIGHT(оБРАЗЕЦ!T$3,2),данные!$E:$E,оБРАЗЕЦ!$A6)","v":0},{"$f":"SUMIFS(данные!$G:$G,данные!$D:$D,\">=\"&--LEFT(оБРАЗЕЦ!T$3,2),данные!$D:$D,\"<=\"&--RIGHT(оБРАЗЕЦ!T$3,2),данные!$E:$E,оБРАЗЕЦ!$A6)","v":0}]
["М",null,null,{"$f":"SUMIFS(данные!$F:$F,данные!$D:$D,\">=\"&--LEFT(оБРАЗЕЦ!D$3,2),данные!$D:$D,\"<=\"&--RIGHT(оБРАЗЕЦ!D$3,2),данные!$E:$E,оБРАЗЕЦ!$A7)","v":2},{"$f":"SUMIFS(данные!$G:$G,данные!$D:$D,\">=\"&--LEFT(оБРАЗЕЦ!D$3,2),данные!$D:$D,\"<=\"&--RIGHT(оБРАЗЕЦ!D$3,2),данные!$E:$E,оБРАЗЕЦ!$A7)","v":1},{"$f":"SUMIFS(данные!$F:$F,данные!$D:$D,\">=\"&--LEFT(оБРАЗЕЦ!F$3,2),данные!$D:$D,\"<=\"&--RIGHT(оБРАЗЕЦ!F$3,2),данные!$E:$E,оБРАЗЕЦ!$A7)","v":15},{"$f":"SUMIFS(данные!$G:$G,данные!$D:$D,\">=\"&--LEFT(оБРАЗЕЦ!F$3,2),данные!$D:$D,\"<=\"&--RIGHT(оБРАЗЕЦ!F$3,2),данные!$E:$E,оБРАЗЕЦ!$A7)","v":4},{"$f":"SUMIFS(данные!$F:$F,данные!$D:$D,\">=\"&--LEFT(оБРАЗЕЦ!H$3,2),данные!$D:$D,\"<=\"&--RIGHT(оБРАЗЕЦ!H$3,2),данные!$E:$E,оБРАЗЕЦ!$A7)","v":14},{"$f":"SUMIFS(данные!$G:$G,данные!$D:$D,\">=\"&--LEFT(оБРАЗЕЦ!H$3,2),данные!$D:$D,\"<=\"&--RIGHT(оБРАЗЕЦ!H$3,2),данные!$E:$E,оБРАЗЕЦ!$A7)","v":2},{"$f":"SUMIFS(данные!$F:$F,данные!$D:$D,\">=\"&--LEFT(оБРАЗЕЦ!J$3,2),данные!$D:$D,\"<=\"&--RIGHT(оБРАЗЕЦ!J$3,2),данные!$E:$E,оБРАЗЕЦ!$A7)","v":19},{"$f":"SUMIFS(данные!$G:$G,данные!$D:$D,\">=\"&--LEFT(оБРАЗЕЦ!J$3,2),данные!$D:$D,\"<=\"&--RIGHT(оБРАЗЕЦ!J$3,2),данные!$E:$E,оБРАЗЕЦ!$A7)","v":4},{"$f":"SUMIFS(данные!$F:$F,данные!$D:$D,\">=\"&--LEFT(оБРАЗЕЦ!L$3,2),данные!$D:$D,\"<=\"&--RIGHT(оБРАЗЕЦ!L$3,2),данные!$E:$E,оБРАЗЕЦ!$A7)","v":8},{"$f":"SUMIFS(данные!$G:$G,данные!$D:$D,\">=\"&--LEFT(оБРАЗЕЦ!L$3,2),данные!$D:$D,\"<=\"&--RIGHT(оБРАЗЕЦ!L$3,2),данные!$E:$E,оБРАЗЕЦ!$A7)","v":3},{"$f":"SUMIFS(данные!$F:$F,данные!$D:$D,\">=\"&--LEFT(оБРАЗЕЦ!N$3,2),данные!$D:$D,\"<=\"&--RIGHT(оБРАЗЕЦ!N$3,2),данные!$E:$E,оБРАЗЕЦ!$A7)","v":0},{"$f":"SUMIFS(данные!$G:$G,данные!$D:$D,\">=\"&--LEFT(оБРАЗЕЦ!N$3,2),данные!$D:$D,\"<=\"&--RIGHT(оБРАЗЕЦ!N$3,2),данные!$E:$E,оБРАЗЕЦ!$A7)","v":0},{"$f":"SUMIFS(данные!$F:$F,данные!$D:$D,\">=\"&--LEFT(оБРАЗЕЦ!P$3,2),данные!$D:$D,\"<=\"&--RIGHT(оБРАЗЕЦ!P$3,2),данные!$E:$E,оБРАЗЕЦ!$A7)","v":2},{"$f":"SUMIFS(данные!$G:$G,данные!$D:$D,\">=\"&--LEFT(оБРАЗЕЦ!P$3,2),данные!$D:$D,\"<=\"&--RIGHT(оБРАЗЕЦ!P$3,2),данные!$E:$E,оБРАЗЕЦ!$A7)","v":1},{"$f":"SUMIFS(данные!$F:$F,данные!$D:$D,\">=\"&--LEFT(оБРАЗЕЦ!R$3,2),данные!$D:$D,\"<=\"&--RIGHT(оБРАЗЕЦ!R$3,2),данные!$E:$E,оБРАЗЕЦ!$A7)","v":0},{"$f":"SUMIFS(данные!$G:$G,данные!$D:$D,\">=\"&--LEFT(оБРАЗЕЦ!R$3,2),данные!$D:$D,\"<=\"&--RIGHT(оБРАЗЕЦ!R$3,2),данные!$E:$E,оБРАЗЕЦ!$A7)","v":0},{"$f":"SUMIFS(данные!$F:$F,данные!$D:$D,\">=\"&--LEFT(оБРАЗЕЦ!T$3,2),данные!$D:$D,\"<=\"&--RIGHT(оБРАЗЕЦ!T$3,2),данные!$E:$E,оБРАЗЕЦ!$A7)","v":0},{"$f":"SUMIFS(данные!$G:$G,данные!$D:$D,\">=\"&--LEFT(оБРАЗЕЦ!T$3,2),данные!$D:$D,\"<=\"&--RIGHT(оБРАЗЕЦ!T$3,2),данные!$E:$E,оБРАЗЕЦ!$A7)","v":0}]
["АЗ",null,null,{"$f":"SUMIFS(данные!$F:$F,данные!$D:$D,\">=\"&--LEFT(оБРАЗЕЦ!D$3,2),данные!$D:$D,\"<=\"&--RIGHT(оБРАЗЕЦ!D$3,2),данные!$E:$E,оБРАЗЕЦ!$A8)","v":0},{"$f":"SUMIFS(данные!$G:$G,данные!$D:$D,\">=\"&--LEFT(оБРАЗЕЦ!D$3,2),данные!$D:$D,\"<=\"&--RIGHT(оБРАЗЕЦ!D$3,2),данные!$E:$E,оБРАЗЕЦ!$A8)","v":0},{"$f":"SUMIFS(данные!$F:$F,данные!$D:$D,\">=\"&--LEFT(оБРАЗЕЦ!F$3,2),данные!$D:$D,\"<=\"&--RIGHT(оБРАЗЕЦ!F$3,2),данные!$E:$E,оБРАЗЕЦ!$A8)","v":0},{"$f":"SUMIFS(данные!$G:$G,данные!$D:$D,\">=\"&--LEFT(оБРАЗЕЦ!F$3,2),данные!$D:$D,\"<=\"&--RIGHT(оБРАЗЕЦ!F$3,2),данные!$E:$E,оБРАЗЕЦ!$A8)","v":0},{"$f":"SUMIFS(данные!$F:$F,данные!$D:$D,\">=\"&--LEFT(оБРАЗЕЦ!H$3,2),данные!$D:$D,\"<=\"&--RIGHT(оБРАЗЕЦ!H$3,2),данные!$E:$E,оБРАЗЕЦ!$A8)","v":0},{"$f":"SUMIFS(данные!$G:$G,данные!$D:$D,\">=\"&--LEFT(оБРАЗЕЦ!H$3,2),данные!$D:$D,\"<=\"&--RIGHT(оБРАЗЕЦ!H$3,2),данные!$E:$E,оБРАЗЕЦ!$A8)","v":0},{"$f":"SUMIFS(данные!$F:$F,данные!$D:$D,\">=\"&--LEFT(оБРАЗЕЦ!J$3,2),данные!$D:$D,\"<=\"&--RIGHT(оБРАЗЕЦ!J$3,2),данные!$E:$E,оБРАЗЕЦ!$A8)","v":0},{"$f":"SUMIFS(данные!$G:$G,данные!$D:$D,\">=\"&--LEFT(оБРАЗЕЦ!J$3,2),данные!$D:$D,\"<=\"&--RIGHT(оБРАЗЕЦ!J$3,2),данные!$E:$E,оБРАЗЕЦ!$A8)","v":0},{"$f":"SUMIFS(данные!$F:$F,данные!$D:$D,\">=\"&--LEFT(оБРАЗЕЦ!L$3,2),данные!$D:$D,\"<=\"&--RIGHT(оБРАЗЕЦ!L$3,2),данные!$E:$E,оБРАЗЕЦ!$A8)","v":0},{"$f":"SUMIFS(данные!$G:$G,данные!$D:$D,\">=\"&--LEFT(оБРАЗЕЦ!L$3,2),данные!$D:$D,\"<=\"&--RIGHT(оБРАЗЕЦ!L$3,2),данные!$E:$E,оБРАЗЕЦ!$A8)","v":0},{"$f":"SUMIFS(данные!$F:$F,данные!$D:$D,\">=\"&--LEFT(оБРАЗЕЦ!N$3,2),данные!$D:$D,\"<=\"&--RIGHT(оБРАЗЕЦ!N$3,2),данные!$E:$E,оБРАЗЕЦ!$A8)","v":0},{"$f":"SUMIFS(данные!$G:$G,данные!$D:$D,\">=\"&--LEFT(оБРАЗЕЦ!N$3,2),данные!$D:$D,\"<=\"&--RIGHT(оБРАЗЕЦ!N$3,2),данные!$E:$E,оБРАЗЕЦ!$A8)","v":0},{"$f":"SUMIFS(данные!$F:$F,данные!$D:$D,\">=\"&--LEFT(оБРАЗЕЦ!P$3,2),данные!$D:$D,\"<=\"&--RIGHT(оБРАЗЕЦ!P$3,2),данные!$E:$E,оБРАЗЕЦ!$A8)","v":0},{"$f":"SUMIFS(данные!$G:$G,данные!$D:$D,\">=\"&--LEFT(оБРАЗЕЦ!P$3,2),данные!$D:$D,\"<=\"&--RIGHT(оБРАЗЕЦ!P$3,2),данные!$E:$E,оБРАЗЕЦ!$A8)","v":0},{"$f":"SUMIFS(данные!$F:$F,данные!$D:$D,\">=\"&--LEFT(оБРАЗЕЦ!R$3,2),данные!$D:$D,\"<=\"&--RIGHT(оБРАЗЕЦ!R$3,2),данные!$E:$E,оБРАЗЕЦ!$A8)","v":0},{"$f":"SUMIFS(данные!$G:$G,данные!$D:$D,\">=\"&--LEFT(оБРАЗЕЦ!R$3,2),данные!$D:$D,\"<=\"&--RIGHT(оБРАЗЕЦ!R$3,2),данные!$E:$E,оБРАЗЕЦ!$A8)","v":0},{"$f":"SUMIFS(данные!$F:$F,данные!$D:$D,\">=\"&--LEFT(оБРАЗЕЦ!T$3,2),данные!$D:$D,\"<=\"&--RIGHT(оБРАЗЕЦ!T$3,2),данные!$E:$E,оБРАЗЕЦ!$A8)","v":0},{"$f":"SUMIFS(данные!$G:$G,данные!$D:$D,\">=\"&--LEFT(оБРАЗЕЦ!T$3,2),данные!$D:$D,\"<=\"&--RIGHT(оБРАЗЕЦ!T$3,2),данные!$E:$E,оБРАЗЕЦ!$A8)","v":0}]
["А",null,null,{"$f":"SUMIFS(данные!$F:$F,данные!$D:$D,\">=\"&--LEFT(оБРАЗЕЦ!D$3,2),данные!$D:$D,\"<=\"&--RIGHT(оБРАЗЕЦ!D$3,2),данные!$E:$E,оБРАЗЕЦ!$A9)","v":7},{"$f":"SUMIFS(данные!$G:$G,данные!$D:$D,\">=\"&--LEFT(оБРАЗЕЦ!D$3,2),данные!$D:$D,\"<=\"&--RIGHT(оБРАЗЕЦ!D$3,2),данные!$E:$E,оБРАЗЕЦ!$A9)","v":2},{"$f":"SUMIFS(данные!$F:$F,данные!$D:$D,\">=\"&--LEFT(оБРАЗЕЦ!F$3,2),данные!$D:$D,\"<=\"&--RIGHT(оБРАЗЕЦ!F$3,2),данные!$E:$E,оБРАЗЕЦ!$A9)","v":3},{"$f":"SUMIFS(данные!$G:$G,данные!$D:$D,\">=\"&--LEFT(оБРАЗЕЦ!F$3,2),данные!$D:$D,\"<=\"&--RIGHT(оБРАЗЕЦ!F$3,2),данные!$E:$E,оБРАЗЕЦ!$A9)","v":1},{"$f":"SUMIFS(данные!$F:$F,данные!$D:$D,\">=\"&--LEFT(оБРАЗЕЦ!H$3,2),данные!$D:$D,\"<=\"&--RIGHT(оБРАЗЕЦ!H$3,2),данные!$E:$E,оБРАЗЕЦ!$A9)","v":16},{"$f":"SUMIFS(данные!$G:$G,данные!$D:$D,\">=\"&--LEFT(оБРАЗЕЦ!H$3,2),данные!$D:$D,\"<=\"&--RIGHT(оБРАЗЕЦ!H$3,2),данные!$E:$E,оБРАЗЕЦ!$A9)","v":5},{"$f":"SUMIFS(данные!$F:$F,данные!$D:$D,\">=\"&--LEFT(оБРАЗЕЦ!J$3,2),данные!$D:$D,\"<=\"&--RIGHT(оБРАЗЕЦ!J$3,2),данные!$E:$E,оБРАЗЕЦ!$A9)","v":9},{"$f":"SUMIFS(данные!$G:$G,данные!$D:$D,\">=\"&--LEFT(оБРАЗЕЦ!J$3,2),данные!$D:$D,\"<=\"&--RIGHT(оБРАЗЕЦ!J$3,2),данные!$E:$E,оБРАЗЕЦ!$A9)","v":3},{"$f":"SUMIFS(данные!$F:$F,данные!$D:$D,\">=\"&--LEFT(оБРАЗЕЦ!L$3,2),данные!$D:$D,\"<=\"&--RIGHT(оБРАЗЕЦ!L$3,2),данные!$E:$E,оБРАЗЕЦ!$A9)","v":10},{"$f":"SUMIFS(данные!$G:$G,данные!$D:$D,\">=\"&--LEFT(оБРАЗЕЦ!L$3,2),данные!$D:$D,\"<=\"&--RIGHT(оБРАЗЕЦ!L$3,2),данные!$E:$E,оБРАЗЕЦ!$A9)","v":2},{"$f":"SUMIFS(данные!$F:$F,данные!$D:$D,\">=\"&--LEFT(оБРАЗЕЦ!N$3,2),данные!$D:$D,\"<=\"&--RIGHT(оБРАЗЕЦ!N$3,2),данные!$E:$E,оБРАЗЕЦ!$A9)","v":0},{"$f":"SUMIFS(данные!$G:$G,данные!$D:$D,\">=\"&--LEFT(оБРАЗЕЦ!N$3,2),данные!$D:$D,\"<=\"&--RIGHT(оБРАЗЕЦ!N$3,2),данные!$E:$E,оБРАЗЕЦ!$A9)","v":0},{"$f":"SUMIFS(данные!$F:$F,данные!$D:$D,\">=\"&--LEFT(оБРАЗЕЦ!P$3,2),данные!$D:$D,\"<=\"&--RIGHT(оБРАЗЕЦ!P$3,2),данные!$E:$E,оБРАЗЕЦ!$A9)","v":0},{"$f":"SUMIFS(данные!$G:$G,данные!$D:$D,\">=\"&--LEFT(оБРАЗЕЦ!P$3,2),данные!$D:$D,\"<=\"&--RIGHT(оБРАЗЕЦ!P$3,2),данные!$E:$E,оБРАЗЕЦ!$A9)","v":0},{"$f":"SUMIFS(данные!$F:$F,данные!$D:$D,\">=\"&--LEFT(оБРАЗЕЦ!R$3,2),данные!$D:$D,\"<=\"&--RIGHT(оБРАЗЕЦ!R$3,2),данные!$E:$E,оБРАЗЕЦ!$A9)","v":0},{"$f":"SUMIFS(данные!$G:$G,данные!$D:$D,\">=\"&--LEFT(оБРАЗЕЦ!R$3,2),данные!$D:$D,\"<=\"&--RIGHT(оБРАЗЕЦ!R$3,2),данные!$E:$E,оБРАЗЕЦ!$A9)","v":0},{"$f":"SUMIFS(данные!$F:$F,данные!$D:$D,\">=\"&--LEFT(оБРАЗЕЦ!T$3,2),данные!$D:$D,\"<=\"&--RIGHT(оБРАЗЕЦ!T$3,2),данные!$E:$E,оБРАЗЕЦ!$A9)","v":0},{"$f":"SUMIFS(данные!$G:$G,данные!$D:$D,\">=\"&--LEFT(оБРАЗЕЦ!T$3,2),данные!$D:$D,\"<=\"&--RIGHT(оБРАЗЕЦ!T$3,2),данные!$E:$E,оБРАЗЕЦ!$A9)","v":0}]
["Н",null,null,{"$f":"SUMIFS(данные!$F:$F,данные!$D:$D,\">=\"&--LEFT(оБРАЗЕЦ!D$3,2),данные!$D:$D,\"<=\"&--RIGHT(оБРАЗЕЦ!D$3,2),данные!$E:$E,оБРАЗЕЦ!$A10)","v":12},{"$f":"SUMIFS(данные!$G:$G,данные!$D:$D,\">=\"&--LEFT(оБРАЗЕЦ!D$3,2),данные!$D:$D,\"<=\"&--RIGHT(оБРАЗЕЦ!D$3,2),данные!$E:$E,оБРАЗЕЦ!$A10)","v":1},{"$f":"SUMIFS(данные!$F:$F,данные!$D:$D,\">=\"&--LEFT(оБРАЗЕЦ!F$3,2),данные!$D:$D,\"<=\"&--RIGHT(оБРАЗЕЦ!F$3,2),данные!$E:$E,оБРАЗЕЦ!$A10)","v":52},{"$f":"SUMIFS(данные!$G:$G,данные!$D:$D,\">=\"&--LEFT(оБРАЗЕЦ!F$3,2),данные!$D:$D,\"<=\"&--RIGHT(оБРАЗЕЦ!F$3,2),данные!$E:$E,оБРАЗЕЦ!$A10)","v":5},{"$f":"SUMIFS(данные!$F:$F,данные!$D:$D,\">=\"&--LEFT(оБРАЗЕЦ!H$3,2),данные!$D:$D,\"<=\"&--RIGHT(оБРАЗЕЦ!H$3,2),данные!$E:$E,оБРАЗЕЦ!$A10)","v":173},{"$f":"SUMIFS(данные!$G:$G,данные!$D:$D,\">=\"&--LEFT(оБРАЗЕЦ!H$3,2),данные!$D:$D,\"<=\"&--RIGHT(оБРАЗЕЦ!H$3,2),данные!$E:$E,оБРАЗЕЦ!$A10)","v":12},{"$f":"SUMIFS(данные!$F:$F,данные!$D:$D,\">=\"&--LEFT(оБРАЗЕЦ!J$3,2),данные!$D:$D,\"<=\"&--RIGHT(оБРАЗЕЦ!J$3,2),данные!$E:$E,оБРАЗЕЦ!$A10)","v":51},{"$f":"SUMIFS(данные!$G:$G,данные!$D:$D,\">=\"&--LEFT(оБРАЗЕЦ!J$3,2),данные!$D:$D,\"<=\"&--RIGHT(оБРАЗЕЦ!J$3,2),данные!$E:$E,оБРАЗЕЦ!$A10)","v":5},{"$f":"SUMIFS(данные!$F:$F,данные!$D:$D,\">=\"&--LEFT(оБРАЗЕЦ!L$3,2),данные!$D:$D,\"<=\"&--RIGHT(оБРАЗЕЦ!L$3,2),данные!$E:$E,оБРАЗЕЦ!$A10)","v":9},{"$f":"SUMIFS(данные!$G:$G,данные!$D:$D,\">=\"&--LEFT(оБРАЗЕЦ!L$3,2),данные!$D:$D,\"<=\"&--RIGHT(оБРАЗЕЦ!L$3,2),данные!$E:$E,оБРАЗЕЦ!$A10)","v":1},{"$f":"SUMIFS(данные!$F:$F,данные!$D:$D,\">=\"&--LEFT(оБРАЗЕЦ!N$3,2),данные!$D:$D,\"<=\"&--RIGHT(оБРАЗЕЦ!N$3,2),данные!$E:$E,оБРАЗЕЦ!$A10)","v":0},{"$f":"SUMIFS(данные!$G:$G,данные!$D:$D,\">=\"&--LEFT(оБРАЗЕЦ!N$3,2),данные!$D:$D,\"<=\"&--RIGHT(оБРАЗЕЦ!N$3,2),данные!$E:$E,оБРАЗЕЦ!$A10)","v":0},{"$f":"SUMIFS(данные!$F:$F,данные!$D:$D,\">=\"&--LEFT(оБРАЗЕЦ!P$3,2),данные!$D:$D,\"<=\"&--RIGHT(оБРАЗЕЦ!P$3,2),данные!$E:$E,оБРАЗЕЦ!$A10)","v":0},{"$f":"SUMIFS(данные!$G:$G,данные!$D:$D,\">=\"&--LEFT(оБРАЗЕЦ!P$3,2),данные!$D:$D,\"<=\"&--RIGHT(оБРАЗЕЦ!P$3,2),данные!$E:$E,оБРАЗЕЦ!$A10)","v":0},{"$f":"SUMIFS(данные!$F:$F,данные!$D:$D,\">=\"&--LEFT(оБРАЗЕЦ!R$3,2),данные!$D:$D,\"<=\"&--RIGHT(оБРАЗЕЦ!R$3,2),данные!$E:$E,оБРАЗЕЦ!$A10)","v":0},{"$f":"SUMIFS(данные!$G:$G,данные!$D:$D,\">=\"&--LEFT(оБРАЗЕЦ!R$3,2),данные!$D:$D,\"<=\"&--RIGHT(оБРАЗЕЦ!R$3,2),данные!$E:$E,оБРАЗЕЦ!$A10)","v":0},{"$f":"SUMIFS(данные!$F:$F,данные!$D:$D,\">=\"&--LEFT(оБРАЗЕЦ!T$3,2),данные!$D:$D,\"<=\"&--RIGHT(оБРАЗЕЦ!T$3,2),данные!$E:$E,оБРАЗЕЦ!$A10)","v":0},{"$f":"SUMIFS(данные!$G:$G,данные!$D:$D,\">=\"&--LEFT(оБРАЗЕЦ!T$3,2),данные!$D:$D,\"<=\"&--RIGHT(оБРАЗЕЦ!T$3,2),данные!$E:$E,оБРАЗЕЦ!$A10)","v":0}]
["У",null,null,{"$f":"SUMIFS(данные!$F:$F,данные!$D:$D,\">=\"&--LEFT(оБРАЗЕЦ!D$3,2),данные!$D:$D,\"<=\"&--RIGHT(оБРАЗЕЦ!D$3,2),данные!$E:$E,оБРАЗЕЦ!$A11)","v":0},{"$f":"SUMIFS(данные!$G:$G,данные!$D:$D,\">=\"&--LEFT(оБРАЗЕЦ!D$3,2),данные!$D:$D,\"<=\"&--RIGHT(оБРАЗЕЦ!D$3,2),данные!$E:$E,оБРАЗЕЦ!$A11)","v":0},{"$f":"SUMIFS(данные!$F:$F,данные!$D:$D,\">=\"&--LEFT(оБРАЗЕЦ!F$3,2),данные!$D:$D,\"<=\"&--RIGHT(оБРАЗЕЦ!F$3,2),данные!$E:$E,оБРАЗЕЦ!$A11)","v":0},{"$f":"SUMIFS(данные!$G:$G,данные!$D:$D,\">=\"&--LEFT(оБРАЗЕЦ!F$3,2),данные!$D:$D,\"<=\"&--RIGHT(оБРАЗЕЦ!F$3,2),данные!$E:$E,оБРАЗЕЦ!$A11)","v":0},{"$f":"SUMIFS(данные!$F:$F,данные!$D:$D,\">=\"&--LEFT(оБРАЗЕЦ!H$3,2),данные!$D:$D,\"<=\"&--RIGHT(оБРАЗЕЦ!H$3,2),данные!$E:$E,оБРАЗЕЦ!$A11)","v":0},{"$f":"SUMIFS(данные!$G:$G,данные!$D:$D,\">=\"&--LEFT(оБРАЗЕЦ!H$3,2),данные!$D:$D,\"<=\"&--RIGHT(оБРАЗЕЦ!H$3,2),данные!$E:$E,оБРАЗЕЦ!$A11)","v":0},{"$f":"SUMIFS(данные!$F:$F,данные!$D:$D,\">=\"&--LEFT(оБРАЗЕЦ!J$3,2),данные!$D:$D,\"<=\"&--RIGHT(оБРАЗЕЦ!J$3,2),данные!$E:$E,оБРАЗЕЦ!$A11)","v":0},{"$f":"SUMIFS(данные!$G:$G,данные!$D:$D,\">=\"&--LEFT(оБРАЗЕЦ!J$3,2),данные!$D:$D,\"<=\"&--RIGHT(оБРАЗЕЦ!J$3,2),данные!$E:$E,оБРАЗЕЦ!$A11)","v":0},{"$f":"SUMIFS(данные!$F:$F,данные!$D:$D,\">=\"&--LEFT(оБРАЗЕЦ!L$3,2),данные!$D:$D,\"<=\"&--RIGHT(оБРАЗЕЦ!L$3,2),данные!$E:$E,оБРАЗЕЦ!$A11)","v":0},{"$f":"SUMIFS(данные!$G:$G,данные!$D:$D,\">=\"&--LEFT(оБРАЗЕЦ!L$3,2),данные!$D:$D,\"<=\"&--RIGHT(оБРАЗЕЦ!L$3,2),данные!$E:$E,оБРАЗЕЦ!$A11)","v":0},{"$f":"SUMIFS(данные!$F:$F,данные!$D:$D,\">=\"&--LEFT(оБРАЗЕЦ!N$3,2),данные!$D:$D,\"<=\"&--RIGHT(оБРАЗЕЦ!N$3,2),данные!$E:$E,оБРАЗЕЦ!$A11)","v":0},{"$f":"SUMIFS(данные!$G:$G,данные!$D:$D,\">=\"&--LEFT(оБРАЗЕЦ!N$3,2),данные!$D:$D,\"<=\"&--RIGHT(оБРАЗЕЦ!N$3,2),данные!$E:$E,оБРАЗЕЦ!$A11)","v":0},{"$f":"SUMIFS(данные!$F:$F,данные!$D:$D,\">=\"&--LEFT(оБРАЗЕЦ!P$3,2),данные!$D:$D,\"<=\"&--RIGHT(оБРАЗЕЦ!P$3,2),данные!$E:$E,оБРАЗЕЦ!$A11)","v":0},{"$f":"SUMIFS(данные!$G:$G,данные!$D:$D,\">=\"&--LEFT(оБРАЗЕЦ!P$3,2),данные!$D:$D,\"<=\"&--RIGHT(оБРАЗЕЦ!P$3,2),данные!$E:$E,оБРАЗЕЦ!$A11)","v":0},{"$f":"SUMIFS(данные!$F:$F,данные!$D:$D,\">=\"&--LEFT(оБРАЗЕЦ!R$3,2),данные!$D:$D,\"<=\"&--RIGHT(оБРАЗЕЦ!R$3,2),данные!$E:$E,оБРАЗЕЦ!$A11)","v":0},{"$f":"SUMIFS(данные!$G:$G,данные!$D:$D,\">=\"&--LEFT(оБРАЗЕЦ!R$3,2),данные!$D:$D,\"<=\"&--RIGHT(оБРАЗЕЦ!R$3,2),данные!$E:$E,оБРАЗЕЦ!$A11)","v":0},{"$f":"SUMIFS(данные!$F:$F,данные!$D:$D,\">=\"&--LEFT(оБРАЗЕЦ!T$3,2),данные!$D:$D,\"<=\"&--RIGHT(оБРАЗЕЦ!T$3,2),данные!$E:$E,оБРАЗЕЦ!$A11)","v":0},{"$f":"SUMIFS(данные!$G:$G,данные!$D:$D,\">=\"&--LEFT(оБРАЗЕЦ!T$3,2),данные!$D:$D,\"<=\"&--RIGHT(оБРАЗЕЦ!T$3,2),данные!$E:$E,оБРАЗЕЦ!$A11)","v":0}]
["С",null,null,{"$f":"SUMIFS(данные!$F:$F,данные!$D:$D,\">=\"&--LEFT(оБРАЗЕЦ!D$3,2),данные!$D:$D,\"<=\"&--RIGHT(оБРАЗЕЦ!D$3,2),данные!$E:$E,оБРАЗЕЦ!$A12)","v":10},{"$f":"SUMIFS(данные!$G:$G,данные!$D:$D,\">=\"&--LEFT(оБРАЗЕЦ!D$3,2),данные!$D:$D,\"<=\"&--RIGHT(оБРАЗЕЦ!D$3,2),данные!$E:$E,оБРАЗЕЦ!$A12)","v":1},{"$f":"SUMIFS(данные!$F:$F,данные!$D:$D,\">=\"&--LEFT(оБРАЗЕЦ!F$3,2),данные!$D:$D,\"<=\"&--RIGHT(оБРАЗЕЦ!F$3,2),данные!$E:$E,оБРАЗЕЦ!$A12)","v":0},{"$f":"SUMIFS(данные!$G:$G,данные!$D:$D,\">=\"&--LEFT(оБРАЗЕЦ!F$3,2),данные!$D:$D,\"<=\"&--RIGHT(оБРАЗЕЦ!F$3,2),данные!$E:$E,оБРАЗЕЦ!$A12)","v":0},{"$f":"SUMIFS(данные!$F:$F,данные!$D:$D,\">=\"&--LEFT(оБРАЗЕЦ!H$3,2),данные!$D:$D,\"<=\"&--RIGHT(оБРАЗЕЦ!H$3,2),данные!$E:$E,оБРАЗЕЦ!$A12)","v":0},{"$f":"SUMIFS(данные!$G:$G,данные!$D:$D,\">=\"&--LEFT(оБРАЗЕЦ!H$3,2),данные!$D:$D,\"<=\"&--RIGHT(оБРАЗЕЦ!H$3,2),данные!$E:$E,оБРАЗЕЦ!$A12)","v":0},{"$f":"SUMIFS(данные!$F:$F,данные!$D:$D,\">=\"&--LEFT(оБРАЗЕЦ!J$3,2),данные!$D:$D,\"<=\"&--RIGHT(оБРАЗЕЦ!J$3,2),данные!$E:$E,оБРАЗЕЦ!$A12)","v":0},{"$f":"SUMIFS(данные!$G:$G,данные!$D:$D,\">=\"&--LEFT(оБРАЗЕЦ!J$3,2),данные!$D:$D,\"<=\"&--RIGHT(оБРАЗЕЦ!J$3,2),данные!$E:$E,оБРАЗЕЦ!$A12)","v":0},{"$f":"SUMIFS(данные!$F:$F,данные!$D:$D,\">=\"&--LEFT(оБРАЗЕЦ!L$3,2),данные!$D:$D,\"<=\"&--RIGHT(оБРАЗЕЦ!L$3,2),данные!$E:$E,оБРАЗЕЦ!$A12)","v":0},{"$f":"SUMIFS(данные!$G:$G,данные!$D:$D,\">=\"&--LEFT(оБРАЗЕЦ!L$3,2),данные!$D:$D,\"<=\"&--RIGHT(оБРАЗЕЦ!L$3,2),данные!$E:$E,оБРАЗЕЦ!$A12)","v":0},{"$f":"SUMIFS(данные!$F:$F,данные!$D:$D,\">=\"&--LEFT(оБРАЗЕЦ!N$3,2),данные!$D:$D,\"<=\"&--RIGHT(оБРАЗЕЦ!N$3,2),данные!$E:$E,оБРАЗЕЦ!$A12)","v":0},{"$f":"SUMIFS(данные!$G:$G,данные!$D:$D,\">=\"&--LEFT(оБРАЗЕЦ!N$3,2),данные!$D:$D,\"<=\"&--RIGHT(оБРАЗЕЦ!N$3,2),данные!$E:$E,оБРАЗЕЦ!$A12)","v":0},{"$f":"SUMIFS(данные!$F:$F,данные!$D:$D,\">=\"&--LEFT(оБРАЗЕЦ!P$3,2),данные!$D:$D,\"<=\"&--RIGHT(оБРАЗЕЦ!P$3,2),данные!$E:$E,оБРАЗЕЦ!$A12)","v":0},{"$f":"SUMIFS(данные!$G:$G,данные!$D:$D,\">=\"&--LEFT(оБРАЗЕЦ!P$3,2),данные!$D:$D,\"<=\"&--RIGHT(оБРАЗЕЦ!P$3,2),данные!$E:$E,оБРАЗЕЦ!$A12)","v":0},{"$f":"SUMIFS(данные!$F:$F,данные!$D:$D,\">=\"&--LEFT(оБРАЗЕЦ!R$3,2),данные!$D:$D,\"<=\"&--RIGHT(оБРАЗЕЦ!R$3,2),данные!$E:$E,оБРАЗЕЦ!$A12)","v":0},{"$f":"SUMIFS(данные!$G:$G,данные!$D:$D,\">=\"&--LEFT(оБРАЗЕЦ!R$3,2),данные!$D:$D,\"<=\"&--RIGHT(оБРАЗЕЦ!R$3,2),данные!$E:$E,оБРАЗЕЦ!$A12)","v":0},{"$f":"SUMIFS(данные!$F:$F,данные!$D:$D,\">=\"&--LEFT(оБРАЗЕЦ!T$3,2),данные!$D:$D,\"<=\"&--RIGHT(оБРАЗЕЦ!T$3,2),данные!$E:$E,оБРАЗЕЦ!$A12)","v":0},{"$f":"SUMIFS(данные!$G:$G,данные!$D:$D,\">=\"&--LEFT(оБРАЗЕЦ!T$3,2),данные!$D:$D,\"<=\"&--RIGHT(оБРАЗЕЦ!T$3,2),данные!$E:$E,оБРАЗЕЦ!$A12)","v":0}]